fUSD/lending_fUSD_20251002
["ID","MTS","AMOUNT","RATE_DAILY","PERIOD"]
[388862453,1759435839067,-431.82,0.00018317,2]
[388862454,1759435839077,-304.33,0.00018345,2]
[388862455,1759435839086,-429.51,0.00018345,2]
[388862456,1759435839099,-427.7,0.00018345,2]
[388862457,1759435839110,-305.88,0.00018345,2]
[388862458,1759435839120,-738.38,0.00018486,2]
[388862459,1759435839130,-429.39,0.00018489,2]
[388862460,1759435839139,-303.22,0.0001856,2]
[388862461,1759435839149,-443.01,0.00018681,2]
[388862462,1759435839158,-279.75439027,0.00018681,2]
[388862463,1759435839184,-159.66560973,0.00018681,2]
[388862464,1759435839193,-421.57249136,0.00018681,2]
[388862465,1759435839210,-9.24750864,0.00018681,2]
[388862466,1759435839220,-1683.00931823,0.00018683,2]
[388862467,1759435839230,-1000.0,0.00018757,2]
[388862468,1759435839239,-738.38,0.0001876,2]
[388862469,1759435839250,-370.49393606,0.00018778,2]
[388862470,1759435839260,-157.0,0.000188,2]
[388862471,1759435839270,-208.0,0.00018878,2]
[388862472,1759435839279,-300.0,0.00019,2]
[388862473,1759435839289,-374.02113638,0.00019034,2]
[388862474,1759435839311,-364.35886362,0.00019034,2]
[388862475,1759435839320,-76.67980391,0.00019113,2]
[388862480,1759435841185,-131.32019609,0.00019113,2]
[388862481,1759435841195,-151.0,0.00019178,2]
[388862482,1759435841204,-208.0,0.00019231,2]
[388862483,1759435841214,-738.38,0.00019308,2]
[388862484,1759435841223,-500.0,0.00019315,2]
[388862485,1759435841233,-208.0,0.0001934,2]
[388862486,1759435841242,-208.0,0.00019349,2]
[388862487,1759435841252,-117.36033655,0.00019399,2]
[388862488,1759435841294,-715.89994427,0.00019399,2]
[388862489,1759435841303,-162.0578327,0.00019407,2]
[388862490,1759435841647,-26.19379432,0.00019407,2]
[388862491,1759435841663,-168.0,0.00019451,2]
[388862492,1759435841673,-420.0,0.00019459,2]
[388862493,1759435841683,-869.55564442,0.00019485,2]
[388862494,1759435841719,-529.03198685,0.00019485,2]
[388862497,1759435843671,-0.01853067,0.00019485,2]
[388862502,1759435844417,-570.54008527,0.00019485,2]
[388862503,1759435844504,-608.56444039,0.00019485,2]
[388862504,1759435844516,-1190.974177,0.00019485,2]
[388862505,1759435844548,-1161.0277735,0.00019485,2]
[388862506,1759435844557,-208.0,0.00019489,2]
[388862507,1759435844566,-1680.0,0.00019555,2]
[388862508,1759435844575,-610.38240694,0.00019556,2]
[388862509,1759435844632,-333.48451472,0.00019556,2]
[388862510,1759435844642,-738.397501,0.00019582,2]
[388862511,1759435844651,-441.53,0.00019629,2]
[388862512,1759435844660,-304.59,0.00019629,2]
[388862513,1759435844669,-438.27,0.00019629,2]
[388862514,1759435844678,-150.0,0.00019677,2]
[388862515,1759435844687,-150.0,0.00019677,2]
[388862516,1759435844696,-150.0,0.00019677,2]
[388862517,1759435844706,-150.0,0.00019677,2]
[388862518,1759435844715,-150.0,0.00019677,2]
[388862519,1759435844725,-150.0,0.00019677,2]
[388862520,1759435844734,-150.0,0.00019677,2]
[388862521,1759435844743,-150.0,0.00019677,2]
[388862522,1759435844758,-2500.0,0.00019678,2]
[388862523,1759435844768,-250.0,0.00019678,2]
[388862524,1759435844777,-1000.0,0.000197,2]
[388862525,1759435844787,-1425.0,0.00019712,2]
[388862526,1759435844796,-156.587,0.00019726,2]
[388862527,1759435844805,-1425.0,0.00019787,2]
[388862528,1759435844814,-1000.0,0.000198,2]
[388862529,1759435844823,-333.19582663,0.0001983,2]
[388862530,1759435844834,-200.0,0.0001984,2]
[388862531,1759435844843,-798.64575844,0.00019842,2]
[388862532,1759435844852,-11814.01312352,0.00019854,2]
[388862533,1759435844861,-11664.10735344,0.00019859,2]
[388862534,1759435844871,-1806.02,0.000199,2]
[388862535,1759435844880,-1000.0,0.000199,2]
[388862536,1759435844889,-1000.0,0.000199,2]
[388862537,1759435844898,-5008.33988712,0.00019944,2]
[388862538,1759435844908,-4428.28161383,0.00019976,2]
[388862539,1759435844917,-154.0,0.0001998,2]
[388862540,1759435844927,-596.49472227,0.0002,2]
[388862541,1759435844936,-1000.0,0.0002,2]
[388862542,1759435844946,-1000.0,0.0002,2]
[388862543,1759435844956,-1000.0,0.0002,2]
[388862544,1759435844966,-1000.0,0.0002,2]
[388862545,1759435844976,-1000.0,0.0002,2]
[388862546,1759435844986,-1000.0,0.0002,2]
[388862547,1759435844997,-1000.0,0.0002,2]
[388862548,1759435845007,-1000.0,0.0002,2]
[388862549,1759435845017,-1000.0,0.0002,2]
[388862550,1759435845027,-1000.0,0.0002,2]
[388862551,1759435845036,-1000.0,0.0002,2]
[388862552,1759435845047,-1000.0,0.0002,2]
[388862553,1759435845057,-1000.0,0.0002,2]
[388862554,1759435845067,-1000.0,0.0002,2]
[388862555,1759435845077,-1000.0,0.0002,2]
[388862556,1759435845087,-1000.0,0.0002,2]
[388862557,1759435845097,-1000.0,0.0002,2]
[388862558,1759435845107,-1000.0,0.0002,2]
[388862559,1759435845117,-1000.0,0.0002,2]
[388862560,1759435845126,-1000.0,0.0002,2]
[388862561,1759435845137,-1000.0,0.0002,2]
[388862562,1759435845147,-1000.0,0.0002,2]
[388862563,1759435845157,-1000.0,0.0002,2]
[388862564,1759435845166,-1000.0,0.0002,2]
[388862565,1759435845175,-1000.0,0.0002,2]
[388862566,1759435845185,-1000.0,0.0002,2]
[388862567,1759435845195,-1000.0,0.0002,2]
[388862568,1759435845204,-1000.0,0.0002,2]
[388862569,1759435845214,-1000.0,0.0002,2]
[388862570,1759435845222,-1000.0,0.0002,2]
[388862571,1759435845232,-1000.0,0.0002,2]
[388862572,1759435845241,-1000.0,0.0002,2]
[388862573,1759435845250,-1000.0,0.0002,2]
[388862574,1759435845260,-1000.0,0.0002,2]
[388862575,1759435845269,-1000.0,0.0002,2]
[388862576,1759435845279,-1000.0,0.0002,2]
[388862577,1759435845289,-1000.0,0.0002,2]
[388862578,1759435845299,-1000.0,0.0002,2]
[388862579,1759435845308,-1000.0,0.0002,2]
[388862580,1759435845318,-1000.0,0.0002,2]
[388862581,1759435845327,-1000.0,0.0002,2]
[388862582,1759435845336,-1000.0,0.0002,2]
[388862583,1759435845346,-1000.0,0.0002,2]
[388862584,1759435845357,-1000.0,0.0002,2]
[388862585,1759435845367,-1000.0,0.0002,2]
[388862586,1759435845376,-1000.0,0.0002,2]
[388862587,1759435845385,-1000.0,0.0002,2]
[388862588,1759435845395,-1000.0,0.0002,2]
[388862589,1759435845405,-1000.0,0.0002,2]
[388862590,1759435845415,-1000.0,0.0002,2]
[388862591,1759435845424,-150.0,0.0002,2]
[388862592,1759435845434,-150.0,0.0002,2]
[388862593,1759435845443,-2225.0,0.0002,2]
[388862594,1759435845453,-758.0,0.0002,2]
[388862595,1759435845466,-641.0,0.0002,2]
[388862596,1759435845476,-202.68752085,0.0002,2]
[388862597,1759435845485,-150.0,0.0002,2]
[388862598,1759435845494,-160.1,0.00020001,2]
[388862599,1759435845508,-169.95,0.00020037,2]
[388862600,1759435845517,-2500.0,0.00020039,2]
[388862601,1759435845526,-203.53995769,0.00020064,2]
[388862602,1759435845538,-11814.01312352,0.00020072,2]
[388862603,1759435845547,-3965.69482109,0.00020097,2]
[388862604,1759435845826,-1000.0,0.000201,2]
[388862605,1759435845836,-1207.65119155,0.00020111,5]
[388862606,1759435845846,-246.71510023,0.00020127,2]
[388862607,1759435845855,-2174.52,0.00020134,2]
[388862608,1759435845864,-945.47,0.00020153,2]
[388862609,1759435845874,-290.33,0.0002017,2]
[388862610,1759435845883,-1673.06,0.0002018,2]
[388862611,1759435845892,-2500.0,0.00020191,2]
[388862612,1759435845901,-289.89024277,0.00020191,2]
[388862613,1759435845910,-596.49472227,0.000202,2]
[388862614,1759435845919,-1338.0,0.000202,2]
[388862615,1759435845928,-168.0,0.00020226,2]
[388862616,1759435845938,-333.06538531,0.00020254,2]
[388862617,1759435845947,-5000.0,0.00020266,2]
[388862618,1759435845956,-150.0,0.00020274,2]
[388862619,1759435845965,-2225.0,0.00020274,2]
[388862620,1759435845974,-758.0,0.00020274,2]
[388862621,1759435845984,-641.0,0.00020274,2]
[388862622,1759435845993,-162.380719,0.00020274,2]
[388862623,1759435846002,-300.0,0.00020286,2]
[388862624,1759435846011,-11814.01312352,0.0002029,2]
[388862625,1759435846020,-376.24052785,0.00020318,2]
[388862626,1759435846029,-5000.0,0.00020334,2]
[388862627,1759435846039,-570.0,0.00020359,2]
[388862628,1759435846047,-1585.0,0.00020359,2]
[388862629,1759435846056,-1307.0,0.00020359,2]
[388862630,1759435846066,-815.0,0.00020359,2]
[388862631,1759435846076,-6235.0,0.00020359,2]
[388862632,1759435846085,-621.0,0.00020359,2]
[388862633,1759435846094,-4114.0,0.00020359,2]
[388862634,1759435846104,-900.0,0.00020359,2]
[388862635,1759435846113,-6137.0,0.00020359,2]
[388862636,1759435846122,-419.41567039,0.00020381,2]
[388862637,1759435846131,-176.29,0.00020389,2]
[388862638,1759435846142,-596.49472227,0.000204,2]
[388862639,1759435846151,-153.03240117,0.00020408,2]
[388862640,1759435846160,-175.06,0.00020415,2]
[388862641,1759435846170,-5000.0,0.00020434,2]
[388862642,1759435846179,-462.59081293,0.00020445,2]
[388862643,1759435846188,-1918.0,0.000205,2]
[388862644,1759435846197,-11814.01312352,0.00020508,2]
[388862645,1759435846207,-505.76595547,0.00020509,2]
[388862646,1759435846216,-192106.7575,0.00020536,2]
[388862647,1759435846225,-151.0,0.00020536,2]
[388862648,1759435846234,-151.0,0.00020536,2]
[388862649,1759435846243,-246.084002,0.00020536,2]
[388862651,1759435846252,-246.084002,0.00020536,2]
[388862653,1759435846261,-246.084002,0.00020536,2]
[388862655,1759435846270,-246.084002,0.00020536,2]
[388862657,1759435846279,-151.0,0.00020536,2]
[388862659,1759435846288,-151.0,0.00020536,2]
[388862661,1759435846298,-382.358596,0.00020536,2]
[388862663,1759435846307,-151.0,0.00020536,2]
[388862665,1759435846316,-382.358596,0.00020536,2]
[388862667,1759435846326,-151.0,0.00020536,2]
[388862669,1759435846335,-382.358596,0.00020536,2]
[388862671,1759435846344,-151.0,0.00020536,2]
[388862673,1759435846354,-382.358596,0.00020536,2]
[388862674,1759435846363,-151.0,0.00020536,2]
[388862675,1759435846372,-666.390906,0.00020536,2]
[388862676,1759435846382,-666.390906,0.00020536,2]
[388862677,1759435846391,-151.0,0.00020536,2]
[388862678,1759435846400,-666.390906,0.00020536,2]
[388862679,1759435846410,-666.390906,0.00020536,2]
[388862680,1759435846419,-151.0,0.00020536,2]
[388862681,1759435846429,-355.790019,0.00020536,2]
[388862682,1759435846438,-151.0,0.00020536,2]
[388862683,1759435846448,-355.790019,0.00020536,2]
[388862684,1759435846462,-150.0,0.00020548,2]
[388862685,1759435846471,-2225.0,0.00020548,2]
[388862686,1759435846481,-758.0,0.00020548,2]
[388862687,1759435846490,-641.0,0.00020548,2]
[388862688,1759435846501,-1000.0,0.00020554,2]
[388862689,1759435846511,-16469.61658447,0.00020555,2]
[388862690,1759435846520,-500.0,0.00020567,2]
[388862691,1759435846529,-548.94109801,0.00020572,2]
[388862692,1759435846538,-596.49472227,0.000206,2]
[388862693,1759435846547,-556.32223476,0.000206,2]
[388862694,1759435846556,-500.0,0.00020614,2]
[388862695,1759435846567,-200.0,0.00020614,2]
[388862696,1759435846576,-262.72198598,0.00020615,5]
[388862697,1759435846585,-500.0,0.00020617,2]
[388862698,1759435846594,-500.0,0.00020617,2]
[388862699,1759435846602,-5000.0,0.00020633,2]
[388862700,1759435846611,-592.11624055,0.00020636,2]
[388862701,1759435846620,-2036.19510378,0.00020677,2]
[388862702,1759435846629,-1000.0,0.00020691,2]
[388862703,1759435846638,-635.29138309,0.00020699,2]
[388862704,1759435846647,-22340.40134897,0.000207,2]
[388862705,1759435846657,-243.0,0.000207,2]
[388862706,1759435846667,-385.0,0.000207,2]
[388862707,1759435846676,-175.04,0.00020715,2]
[388862708,1759435846685,-157.9217305,0.00020722,2]
[388862709,1759435846695,-11814.01312352,0.00020726,2]
[388862710,1759435846704,-23996.67,0.00020733,2]
[388862711,1759435846714,-155.982154,0.00020733,2]
[388862712,1759435846724,-153.325101,0.00020733,2]
[388862713,1759435846735,-151.0,0.00020733,2]
[388862714,1759435846744,-151.0,0.00020733,2]
[388862715,1759435846754,-151.0,0.00020733,2]
[388862716,1759435846763,-151.0,0.00020733,2]
[388862717,1759435846774,-151.0,0.00020733,2]
[388862718,1759435846784,-151.0,0.00020733,2]
[388862719,1759435846793,-151.0,0.00020733,2]
[388862720,1759435846802,-151.0,0.00020733,2]
[388862721,1759435846812,-151.0,0.00020733,2]
[388862722,1759435846821,-153.617248,0.00020733,2]
[388862723,1759435846830,-151.0,0.00020733,2]
[388862724,1759435846839,-151.0,0.00020733,2]
[388862725,1759435846848,-151.0,0.00020733,2]
[388862726,1759435846858,-151.0,0.00020733,2]
[388862727,1759435846867,-151.0,0.00020733,2]
[388862728,1759435846876,-151.0,0.00020733,2]
[388862729,1759435846886,-151.0,0.00020733,2]
[388862731,1759435846895,-151.0,0.00020733,2]
[388862733,1759435846904,-151.374353,0.00020733,2]
[388862734,1759435846913,-151.0,0.00020733,2]
[388862735,1759435846922,-151.0,0.00020733,2]
[388862736,1759435846933,-261.896667,0.00020733,2]
[388862737,1759435846944,-283.423875,0.00020733,2]
[388862738,1759435846954,-151.0,0.00020733,2]
[388862739,1759435846964,-151.0,0.00020762,2]
[388862740,1759435846973,-150.0,0.00020762,2]
[388862741,1759435846982,-678.46652563,0.00020763,2]
[388862742,1759435846992,-5000.0,0.00020769,2]
[388862743,1759435847001,-150.0,0.0002077,4]
[388862744,1759435847010,-5000.0,0.00020777,2]
[388862745,1759435847020,-151.0,0.00020777,2]
[388862746,1759435847029,-151.0,0.00020777,2]
[388862747,1759435847038,-151.0,0.00020777,2]
[388862748,1759435847047,-472.049816,0.00020777,2]
[388862749,1759435847057,-472.049816,0.00020777,2]
[388862750,1759435847067,-472.049816,0.00020777,2]
[388862751,1759435847076,-472.049816,0.00020777,2]
[388862752,1759435847085,-151.0,0.00020777,2]
[388862753,1759435847095,-151.0,0.00020777,2]
[388862754,1759435847104,-151.0,0.00020777,2]
[388862755,1759435847113,-151.0,0.00020777,2]
[388862756,1759435847122,-151.0,0.00020777,2]
[388862757,1759435847131,-151.0,0.00020777,2]
[388862758,1759435847140,-273.068336,0.00020777,2]
[388862759,1759435847150,-151.0,0.00020777,2]
[388862760,1759435847160,-151.0,0.00020777,2]
[388862761,1759435847168,-151.0,0.00020777,2]
[388862762,1759435847178,-151.0,0.00020777,2]
[388862763,1759435847187,-151.0,0.00020777,2]
[388862764,1759435847196,-151.0,0.00020777,2]
[388862765,1759435847205,-151.0,0.00020777,2]
[388862766,1759435847214,-151.0,0.00020777,2]
[388862767,1759435847223,-151.0,0.00020777,2]
[388862768,1759435847232,-151.0,0.00020777,2]
[388862769,1759435847241,-151.0,0.00020777,2]
[388862770,1759435847251,-151.0,0.00020777,2]
[388862771,1759435847260,-151.0,0.00020777,2]
[388862772,1759435847270,-151.0,0.00020777,2]
[388862773,1759435847279,-213.279528,0.00020777,2]
[388862774,1759435847288,-213.279528,0.00020777,2]
[388862775,1759435847298,-213.279528,0.00020777,2]
[388862776,1759435847307,-151.0,0.00020777,2]
[388862777,1759435847317,-213.279528,0.00020777,2]
[388862778,1759435847327,-151.0,0.00020777,2]
[388862779,1759435847336,-151.0,0.00020777,2]
[388862780,1759435847345,-151.0,0.00020777,2]
[388862781,1759435847354,-151.0,0.00020777,2]
[388862782,1759435847363,-151.0,0.00020777,2]
[388862783,1759435847372,-151.0,0.00020777,2]
[388862784,1759435847381,-151.0,0.00020777,2]
[388862785,1759435847391,-151.0,0.00020777,2]
[388862786,1759435847401,-151.0,0.00020777,2]
[388862787,1759435847410,-151.0,0.00020777,2]
[388862788,1759435847419,-151.0,0.00020777,2]
[388862789,1759435847428,-151.0,0.00020777,2]
[388862790,1759435847437,-151.0,0.00020777,2]
[388862791,1759435847447,-151.0,0.00020777,2]
[388862792,1759435847460,-277.147376,0.00020777,2]
[388862793,1759435847469,-151.0,0.00020777,2]
[388862794,1759435847479,-277.147376,0.00020777,2]
[388862795,1759435847488,-151.0,0.00020777,2]
[388862796,1759435847499,-277.147376,0.00020777,2]
[388862797,1759435847508,-151.0,0.00020777,2]
[388862798,1759435847517,-277.147376,0.00020777,2]
[388862799,1759435847527,-2793.62,0.00020796,2]
[388862800,1759435847539,-596.49472227,0.000208,2]
[388862801,1759435847549,-500.0,0.000208,7]
[388862802,1759435847558,-2036.19510372,0.00020804,2]
[388862803,1759435847567,-151.0,0.00020804,2]
[388862804,1759435847576,-151.0,0.00020804,2]
[388862805,1759435847585,-151.0,0.00020804,2]
[388862806,1759435847594,-151.0,0.00020804,2]
[388862807,1759435847604,-151.0,0.00020804,2]
[388862808,1759435847613,-151.0,0.00020804,2]
[388862809,1759435847622,-151.0,0.00020804,2]
[388862810,1759435847631,-151.0,0.00020804,2]
[388862811,1759435847640,-151.0,0.00020804,2]
[388862812,1759435847649,-151.0,0.00020804,2]
[388862813,1759435847659,-150.0,0.00020822,2]
[388862814,1759435847668,-2225.0,0.00020822,2]
[388862815,1759435847677,-758.0,0.00020822,2]
[388862816,1759435847687,-641.0,0.00020822,2]
[388862817,1759435847696,-151.0,0.00020822,2]
[388862818,1759435847706,-157.16893,0.00020822,2]
[388862819,1759435847715,-178.239596,0.00020822,2]
[388862820,1759435847725,-151.0,0.00020822,2]
[388862821,1759435847735,-151.0,0.00020822,2]
[388862822,1759435847744,-160.877631,0.00020822,2]
[388862823,1759435847753,-151.0,0.00020822,2]
[388862824,1759435847764,-246.084002,0.00020822,2]
[388862825,1759435847773,-246.084002,0.00020822,2]
[388862826,1759435847783,-246.084002,0.00020822,2]
[388862827,1759435847792,-246.084002,0.00020822,2]
[388862828,1759435847801,-151.0,0.00020822,2]
[388862829,1759435847810,-151.0,0.00020822,2]
[388862830,1759435847820,-382.358596,0.00020822,2]
[388862831,1759435847830,-151.0,0.00020822,2]
[388862832,1759435847839,-382.358596,0.00020822,2]
[388862833,1759435847849,-151.0,0.00020822,2]
[388862834,1759435847858,-382.358596,0.00020822,2]
[388862835,1759435847867,-151.0,0.00020822,2]
[388862836,1759435847876,-382.358596,0.00020822,2]
[388862837,1759435847886,-151.0,0.00020822,2]
[388862838,1759435847895,-666.390906,0.00020822,2]
[388862839,1759435847905,-666.390906,0.00020822,2]
[388862840,1759435847914,-151.0,0.00020822,2]
[388862841,1759435847923,-666.390906,0.00020822,2]
[388862842,1759435847933,-666.390906,0.00020822,2]
[388862843,1759435847942,-151.0,0.00020822,2]
[388862844,1759435847951,-355.790019,0.00020822,2]
[388862845,1759435847960,-151.0,0.00020822,2]
[388862846,1759435847969,-355.790019,0.00020822,2]
[388862847,1759435847980,-721.64166817,0.00020826,2]
[388862848,1759435847990,-1058.63645421,0.00020828,2]
[388862849,1759435847999,-556.3222347,0.00020866,2]
[388862850,1759435848008,-165.48,0.00020868,2]
[388862851,1759435848018,-151.0,0.00020868,2]
[388862852,1759435848027,-151.0,0.00020868,2]
[388862853,1759435848036,-151.0,0.00020868,2]
[388862854,1759435848045,-151.0,0.00020868,2]
[388862855,1759435848055,-151.0,0.00020868,2]
[388862856,1759435848065,-206.662505,0.00020868,2]
[388862857,1759435848074,-151.0,0.00020868,2]
[388862858,1759435848083,-151.0,0.00020868,2]
[388862859,1759435848092,-151.0,0.00020868,2]
[388862860,1759435848103,-910.88332,0.00020868,2]
[388862861,1759435848112,-151.0,0.00020868,2]
[388862862,1759435848122,-910.88332,0.00020868,2]
[388862863,1759435848131,-910.88332,0.00020868,2]
[388862864,1759435848140,-910.88332,0.00020868,2]
[388862865,1759435848149,-151.0,0.00020868,2]
[388862866,1759435848159,-151.0,0.00020868,2]
[388862867,1759435848168,-151.0,0.00020868,2]
[388862868,1759435848177,-151.0,0.00020868,2]
[388862869,1759435848186,-151.0,0.00020868,2]
[388862870,1759435848196,-151.0,0.00020868,2]
[388862871,1759435848206,-151.0,0.00020868,2]
[388862872,1759435848215,-151.0,0.00020868,2]
[388862873,1759435848224,-151.0,0.00020868,2]
[388862874,1759435848233,-151.0,0.00020868,2]
[388862875,1759435848243,-151.0,0.00020868,2]
[388862876,1759435848252,-764.81681072,0.0002089,2]
[388862877,1759435848261,-1207.65119155,0.00020899,5]
[388862878,1759435848271,-30297.83,0.000209,2]
[388862879,1759435848281,-30297.83,0.000209,2]
[388862880,1759435848291,-30297.83,0.000209,2]
[388862881,1759435848300,-693.6,0.000209,2]
[388862882,1759435848309,-11443.34,0.000209,2]
[388862883,1759435848319,-11443.34,0.000209,2]
[388862884,1759435848328,-11443.34,0.000209,2]
[388862885,1759435848338,-598.49,0.000209,2]
[388862886,1759435848348,-1989.64,0.000209,2]
[388862887,1759435848359,-1989.64,0.000209,2]
[388862888,1759435848368,-1989.64,0.000209,2]
[388862889,1759435848377,-21019.19183067,0.000209,2]
[388862890,1759435848386,-151.0,0.000209,2]
[388862891,1759435848395,-151.0,0.000209,2]
[388862892,1759435848406,-151.0,0.000209,2]
[388862893,1759435848415,-151.0,0.000209,2]
[388862894,1759435848425,-151.0,0.000209,2]
[388862895,1759435848434,-151.0,0.000209,2]
[388862896,1759435848443,-255.946536,0.000209,2]
[388862897,1759435848454,-151.0,0.000209,2]
[388862898,1759435848467,-211.077632,0.000209,2]
[388862899,1759435848476,-151.0,0.000209,2]
[388862900,1759435848486,-151.0,0.000209,2]
[388862901,1759435848495,-151.0,0.000209,2]
[388862902,1759435848505,-151.0,0.000209,2]
[388862903,1759435848514,-151.0,0.000209,2]
[388862904,1759435848524,-165.137137,0.000209,2]
[388862905,1759435848534,-151.0,0.000209,2]
[388862906,1759435848543,-151.0,0.000209,2]
[388862907,1759435848552,-151.0,0.000209,2]
[388862908,1759435848562,-262.160137,0.000209,2]
[388862909,1759435848571,-213.020728,0.000209,2]
[388862910,1759435848580,-151.0,0.000209,2]
[388862911,1759435848590,-206.82613,0.000209,2]
[388862912,1759435848599,-206.82613,0.000209,2]
[388862913,1759435848608,-206.82613,0.000209,2]
[388862914,1759435848618,-206.82613,0.000209,2]
[388862915,1759435848628,-206.82613,0.000209,2]
[388862916,1759435848637,-206.82613,0.000209,2]
[388862917,1759435848647,-206.82613,0.000209,2]
[388862918,1759435848657,-206.82613,0.000209,2]
[388862919,1759435848666,-151.0,0.000209,2]
[388862920,1759435848677,-151.0,0.000209,2]
[388862921,1759435848688,-151.0,0.000209,2]
[388862923,1759435848696,-151.0,0.000209,2]
[388862924,1759435848705,-151.0,0.000209,2]
[388862925,1759435848714,-294.462796,0.000209,2]
[388862926,1759435848725,-231.587884,0.000209,2]
[388862927,1759435848735,-151.0,0.000209,2]
[388862928,1759435848744,-151.0,0.000209,2]
[388862929,1759435848754,-151.0,0.000209,2]
[388862930,1759435848763,-210.292785,0.000209,2]
[388862931,1759435848774,-151.0,0.000209,2]
[388862932,1759435848784,-151.0,0.000209,2]
[388862933,1759435848793,-151.0,0.000209,2]
[388862934,1759435848803,-151.0,0.000209,2]
[388862935,1759435848813,-151.0,0.000209,2]
[388862936,1759435848822,-151.0,0.000209,2]
[388862937,1759435848832,-151.0,0.000209,2]
[388862938,1759435848842,-151.0,0.000209,2]
[388862939,1759435848851,-152.543926,0.000209,2]
[388862940,1759435848860,-151.0,0.000209,2]
[388862941,1759435848870,-151.0,0.000209,2]
[388862942,1759435848880,-151.0,0.000209,2]
[388862943,1759435848889,-151.0,0.000209,2]
[388862944,1759435848899,-151.0,0.000209,2]
[388862945,1759435848908,-151.0,0.000209,2]
[388862946,1759435848918,-151.0,0.000209,2]
[388862947,1759435848927,-212.691624,0.000209,2]
[388862948,1759435848936,-151.0,0.000209,2]
[388862949,1759435848946,-151.0,0.000209,2]
[388862950,1759435848956,-151.0,0.000209,2]
[388862951,1759435848965,-151.0,0.000209,2]
[388862952,1759435848975,-201.746412,0.000209,2]
[388862953,1759435848984,-256.608463,0.000209,2]
[388862954,1759435848994,-151.0,0.000209,2]
[388862955,1759435849003,-151.0,0.000209,2]
[388862956,1759435849012,-472.049816,0.000209,2]
[388862957,1759435849021,-472.049816,0.000209,2]
[388862958,1759435849031,-472.049816,0.000209,2]
[388862959,1759435849040,-472.049816,0.000209,2]
[388862960,1759435849049,-151.0,0.000209,2]
[388862961,1759435849058,-151.0,0.000209,2]
[388862962,1759435849067,-151.0,0.000209,2]
[388862963,1759435849076,-151.0,0.000209,2]
[388862964,1759435849086,-151.0,0.000209,2]
[388862965,1759435849096,-151.0,0.000209,2]
[388862966,1759435849105,-151.0,0.000209,2]
[388862967,1759435849115,-151.0,0.000209,2]
[388862968,1759435849124,-151.0,0.000209,2]
[388862969,1759435849133,-151.0,0.000209,2]
[388862970,1759435849143,-287.983142,0.000209,2]
[388862971,1759435849151,-151.0,0.000209,2]
[388862972,1759435849161,-167.875886,0.000209,2]
[388862973,1759435849170,-151.0,0.000209,2]
[388862974,1759435849180,-151.0,0.000209,2]
[388862975,1759435849189,-151.0,0.000209,2]
[388862976,1759435849199,-151.0,0.000209,2]
[388862977,1759435849207,-151.0,0.000209,2]